[Event "Late Titled Tuesday Blitz February 8 2022"]
[White "Dourerassou, Jonathan"]
[Black "Stearman, Josiah"]
[WhiteFideId "628050"]
[BlackFideId "2062496"]
[WhiteElo "2513"]
[BlackElo "2402"]
[Result "1-0"]
[Round "05"]
[TimeControl "180+1"]
[Date "2022.02.09"]
[WhiteClock "0:01:10"]
[BlackClock "0:00:20"]

1. d4 {[%clk 0:03:00]}  d5 {[%clk 0:02:56]} 2. c4 {[%clk 0:03:00]}  c6 {[%clk 0:02:49]} 3. cxd5 {[%clk 0:02:59]}  cxd5 {[%clk 0:02:49]} 4. Bf4 {[%clk 0:03:00]}  Nc6 {[%clk 0:02:48]} 5. e3 {[%clk 0:03:01]}  Nf6 {[%clk 0:02:49]} 6. Nc3 {[%clk 0:03:01]}  Bg4 {[%clk 0:02:46]} 7. Qb3 {[%clk 0:03:00]}  Na5 {[%clk 0:02:46]} 8. Qa4+ {[%clk 0:03:00]}  Bd7 {[%clk 0:02:47]} 9. Qc2 {[%clk 0:03:00]}  e6 {[%clk 0:02:43]} 10. Nf3 {[%clk 0:02:58]}  Be7 {[%clk 0:02:33]} 11. Bd3 {[%clk 0:02:58]}  Nc6 {[%clk 0:02:33]} 12. a3 {[%clk 0:02:57]}  Nh5 {[%clk 0:02:28]} 13. Bg3 {[%clk 0:02:53]}  Nxg3 {[%clk 0:02:22]} 14. hxg3 {[%clk 0:02:54]}  h6 {[%clk 0:02:23]} 15. g4 {[%clk 0:02:52]}  Rc8 {[%clk 0:02:21]} 16. Rc1 {[%clk 0:02:46]}  e5 {[%clk 0:02:18]} 17. Nxe5 {[%clk 0:02:32]}  Nxe5 {[%clk 0:02:15]} 18. dxe5 {[%clk 0:02:32]}  Bxg4 {[%clk 0:02:15]} 19. Bb5+ {[%clk 0:02:27]}  Kf8 {[%clk 0:02:14]} 20. Qd3 {[%clk 0:02:20]}  a6 {[%clk 0:02:07]} 21. Ba4 {[%clk 0:02:20]}  Be6 {[%clk 0:02:03]} 22. Rd1 {[%clk 0:02:17]}  Qa5 {[%clk 0:02:02]} 23. Bc2 {[%clk 0:02:09]}  Bxa3 {[%clk 0:02:01]} 24. O-O {[%clk 0:02:03]}  Bxb2 {[%clk 0:01:57]} 25. Nxd5 {[%clk 0:02:03]}  Bxe5 {[%clk 0:01:39]} 26. Nf4 {[%clk 0:01:50]}  Bc4 {[%clk 0:01:36]} 27. Qf5 {[%clk 0:01:47]}  Qc7 {[%clk 0:00:30]} 28. Ng6+ {[%clk 0:01:42]}  Kg8 {[%clk 0:00:31]} 29. Qxc8+ {[%clk 0:01:13]}  Qxc8 {[%clk 0:00:26]} 30. Ne7+ {[%clk 0:01:13]}  Kf8 {[%clk 0:00:26]} 31. Nxc8 {[%clk 0:01:13]}  Bc7 {[%clk 0:00:21]} 32. Bd3 {[%clk 0:01:12]}  Be6 {[%clk 0:00:20]} 33. Rc1 {[%clk 0:01:10]} 1-0


[Site "https://www.chess.com"]

[Event "Late Titled Tuesday Blitz February 8 2022"]
[White "Erdogdu, Mert"]
[Black "Deac, Bogdan-Daniel"]
[WhiteFideId "6301495"]
[BlackFideId "1226380"]
[WhiteElo "2485"]
[BlackElo "2646"]
[Result "0-1"]
[Round "05"]
[TimeControl "180+1"]
[Date "2022.02.08"]
[WhiteClock "0:00:03"]
[BlackClock "0:00:05"]

1. e4 {[%clk 0:03:00]}  c5 {[%clk 0:02:57]} 2. Nf3 {[%clk 0:02:59]}  Nc6 {[%clk 0:02:56]} 3. d4 {[%clk 0:02:59]}  cxd4 {[%clk 0:02:56]} 4. Nxd4 {[%clk 0:03:00]}  Nf6 {[%clk 0:02:57]} 5. Nc3 {[%clk 0:02:59]}  e5 {[%clk 0:02:57]} 6. Ndb5 {[%clk 0:03:00]}  d6 {[%clk 0:02:57]} 7. Bg5 {[%clk 0:03:00]}  a6 {[%clk 0:02:58]} 8. Na3 {[%clk 0:03:00]}  Be6 {[%clk 0:02:58]} 9. Nc4 {[%clk 0:02:55]}  Rb8 {[%clk 0:02:57]} 10. Bxf6 {[%clk 0:02:53]}  Qxf6 {[%clk 0:02:57]} 11. Nb6 {[%clk 0:02:44]}  Qd8 {[%clk 0:02:39]} 12. Ncd5 {[%clk 0:02:40]}  g6 {[%clk 0:02:08]} 13. c3 {[%clk 0:02:37]}  Bg7 {[%clk 0:02:07]} 14. Bc4 {[%clk 0:02:36]}  O-O {[%clk 0:02:07]} 15. a4 {[%clk 0:02:35]}  f5 {[%clk 0:02:02]} 16. Qe2 {[%clk 0:02:24]}  fxe4 {[%clk 0:01:35]} 17. O-O {[%clk 0:02:16]}  Bf5 {[%clk 0:01:20]} 18. a5 {[%clk 0:02:03]}  Kh8 {[%clk 0:01:17]} 19. b4 {[%clk 0:02:02]}  Qh4 {[%clk 0:01:16]} 20. Rad1 {[%clk 0:01:55]}  Bh6 {[%clk 0:01:07]} 21. Ne3 {[%clk 0:01:50]}  Qe7 {[%clk 0:00:32]} 22. Ba2 {[%clk 0:01:27]}  Rbd8 {[%clk 0:00:27]} 23. Nbd5 {[%clk 0:01:19]}  Qh4 {[%clk 0:00:24]} 24. Bb1 {[%clk 0:01:10]}  Na7 {[%clk 0:00:17]} 25. Nc4 {[%clk 0:00:51]}  Nb5 {[%clk 0:00:16]} 26. g3 {[%clk 0:00:50]}  Qg4 {[%clk 0:00:15]} 27. Qxg4 {[%clk 0:00:32]}  Bxg4 {[%clk 0:00:16]} 28. Bxe4 {[%clk 0:00:32]}  Bxd1 {[%clk 0:00:14]} 29. Rxd1 {[%clk 0:00:33]}  Rc8 {[%clk 0:00:13]} 30. Ndb6 {[%clk 0:00:20]}  Rc7 {[%clk 0:00:09]} 31. Rd3 {[%clk 0:00:20]}  Rcf7 {[%clk 0:00:06]} 32. f3 {[%clk 0:00:20]}  Rc7 {[%clk 0:00:06]} 33. Kg2 {[%clk 0:00:19]}  Rd8 {[%clk 0:00:06]} 34. Bd5 {[%clk 0:00:15]}  Bf8 {[%clk 0:00:04]} 35. h4 {[%clk 0:00:14]}  Be7 {[%clk 0:00:04]} 36. Kh3 {[%clk 0:00:15]}  Kg7 {[%clk 0:00:04]} 37. g4 {[%clk 0:00:15]}  h5 {[%clk 0:00:05]} 38. g5 {[%clk 0:00:15]}  Rf8 {[%clk 0:00:05]} 39. Kg3 {[%clk 0:00:15]}  Rf4 {[%clk 0:00:06]} 40. Nd2 {[%clk 0:00:12]}  Nxc3 {[%clk 0:00:05]} 41. Ne4 {[%clk 0:00:07]}  Ne2+ {[%clk 0:00:04]} 42. Kf2 {[%clk 0:00:06]}  Nd4 {[%clk 0:00:05]} 43. Kg3 {[%clk 0:00:06]}  Ne2+ {[%clk 0:00:05]} 44. Kf2 {[%clk 0:00:06]}  Nd4 {[%clk 0:00:06]} 45. Kg3 {[%clk 0:00:06]}  Kf8 {[%clk 0:00:06]} 46. Nc4 {[%clk 0:00:06]}  Nb5 {[%clk 0:00:05]} 47. Nb6 {[%clk 0:00:06]}  Ke8 {[%clk 0:00:04]} 48. Nc4 {[%clk 0:00:06]}  Kd8 {[%clk 0:00:03]} 49. Nb6 {[%clk 0:00:06]}  Ke8 {[%clk 0:00:04]} 50. Nc4 {[%clk 0:00:06]}  Nd4 {[%clk 0:00:04]} 51. Nb6 {[%clk 0:00:06]}  Ne2+ {[%clk 0:00:04]} 52. Kf2 {[%clk 0:00:06]}  Nc1 {[%clk 0:00:05]} 53. Rd1 {[%clk 0:00:06]}  Rxh4 {[%clk 0:00:05]} 54. Nc4 {[%clk 0:00:04]}  Nb3 {[%clk 0:00:05]} 55. Ncxd6+ {[%clk 0:00:04]}  Bxd6 {[%clk 0:00:06]} 56. Nxd6+ {[%clk 0:00:04]}  Ke7 {[%clk 0:00:06]} 57. Ne4 {[%clk 0:00:04]}  Nd4 {[%clk 0:00:05]} 58. Nf6 {[%clk 0:00:04]}  Rf4 {[%clk 0:00:05]} 59. Kg3 {[%clk 0:00:04]}  Nf5+ {[%clk 0:00:04]} 60. Kf2 {[%clk 0:00:04]}  Rd4 {[%clk 0:00:05]} 61. Re1 {[%clk 0:00:03]}  Rd2+ {[%clk 0:00:05]} 62. Kf1 {[%clk 0:00:03]}  Rcc2 {[%clk 0:00:05]} 63. Rxe5+ {[%clk 0:00:03]}  Kd6 {[%clk 0:00:05]} 0-1


[Site "https://www.chess.com"]

[Event "Late Titled Tuesday Blitz February 8 2022"]
[White "Glavina, Pablo"]
[Black "Shahade, Gregory"]
[WhiteFideId "100234"]
[BlackFideId "2009064"]
[WhiteElo "2369"]
[BlackElo "2664"]
[Result "1/2-1/2"]
[Round "05"]
[TimeControl "180+1"]
[Date "2022.02.09"]
[WhiteClock "0:00:27"]
[BlackClock "0:00:11"]

1. e4 {[%clk 0:02:56]}  e5 {[%clk 0:02:59]} 2. Nf3 {[%clk 0:02:56]}  Nc6 {[%clk 0:02:59]} 3. Nc3 {[%clk 0:02:56]}  Nf6 {[%clk 0:02:59]} 4. d4 {[%clk 0:02:57]}  exd4 {[%clk 0:03:00]} 5. Nxd4 {[%clk 0:02:57]}  Bb4 {[%clk 0:03:00]} 6. Nxc6 {[%clk 0:02:57]}  bxc6 {[%clk 0:03:00]} 7. Bd3 {[%clk 0:02:58]}  d5 {[%clk 0:02:59]} 8. exd5 {[%clk 0:02:58]}  O-O {[%clk 0:02:58]} 9. O-O {[%clk 0:02:59]}  Bg4 {[%clk 0:02:57]} 10. f3 {[%clk 0:02:59]}  Bh5 {[%clk 0:02:57]} 11. dxc6 {[%clk 0:02:59]}  Qd4+ {[%clk 0:02:56]} 12. Kh1 {[%clk 0:03:00]}  Bxc3 {[%clk 0:02:56]} 13. bxc3 {[%clk 0:03:00]}  Qxc3 {[%clk 0:02:57]} 14. Bg5 {[%clk 0:03:00]}  Qxc6 {[%clk 0:02:52]} 15. Rb1 {[%clk 0:03:00]}  Bg6 {[%clk 0:02:51]} 16. Bxg6 {[%clk 0:02:59]}  hxg6 {[%clk 0:02:51]} 17. Bxf6 {[%clk 0:02:58]}  Qxf6 {[%clk 0:02:51]} 18. Qd7 {[%clk 0:02:56]}  Qc3 {[%clk 0:02:47]} 19. a4 {[%clk 0:02:47]}  Qxc2 {[%clk 0:02:33]} 20. Rfc1 {[%clk 0:02:41]}  Rab8 {[%clk 0:02:16]} 21. Ra1 {[%clk 0:02:32]}  Qf2 {[%clk 0:02:02]} 22. Qxc7 {[%clk 0:02:30]}  Rb2 {[%clk 0:02:02]} 23. Rg1 {[%clk 0:02:29]}  Re8 {[%clk 0:01:51]} 24. a5 {[%clk 0:02:28]}  g5 {[%clk 0:01:32]} 25. Raf1 {[%clk 0:02:21]}  Qe3 {[%clk 0:01:24]} 26. Qd7 {[%clk 0:02:12]}  Re6 {[%clk 0:01:20]} 27. h3 {[%clk 0:02:04]}  a6 {[%clk 0:01:15]} 28. Rb1 {[%clk 0:02:01]}  Rxb1 {[%clk 0:00:43]} 29. Rxb1 {[%clk 0:02:02]}  Re8 {[%clk 0:00:40]} 30. Qc6 {[%clk 0:01:53]}  Qe2 {[%clk 0:00:32]} 31. Rc1 {[%clk 0:01:33]}  f6 {[%clk 0:00:28]} 32. Qd5+ {[%clk 0:01:27]}  Kh7 {[%clk 0:00:26]} 33. Qf5+ {[%clk 0:01:21]}  Kh6 {[%clk 0:00:22]} 34. h4 {[%clk 0:01:13]}  gxh4 {[%clk 0:00:17]} 35. Qf4+ {[%clk 0:01:12]}  Kh7 {[%clk 0:00:12]} 36. Qxh4+ {[%clk 0:01:11]}  Kg8 {[%clk 0:00:13]} 37. Qh5 {[%clk 0:01:02]}  Qe5 {[%clk 0:00:12]} 38. Qg6 {[%clk 0:00:57]}  Rd8 {[%clk 0:00:12]} 39. Qc2 {[%clk 0:00:34]}  Qh5+ {[%clk 0:00:10]} 40. Kg1 {[%clk 0:00:33]}  Qxa5 {[%clk 0:00:10]} 41. Qc4+ {[%clk 0:00:33]}  Kf8 {[%clk 0:00:07]} 42. Rb1 {[%clk 0:00:29]}  Qd5 {[%clk 0:00:06]} 43. Qxa6 {[%clk 0:00:26]}  Qd4+ {[%clk 0:00:06]} 44. Kf1 {[%clk 0:00:25]}  Qd3+ {[%clk 0:00:05]} 45. Qxd3 {[%clk 0:00:24]}  Rxd3 {[%clk 0:00:06]} 46. Rb7 {[%clk 0:00:25]}  Re3 {[%clk 0:00:05]} 47. Kf2 {[%clk 0:00:24]}  Re7 {[%clk 0:00:06]} 48. Rb6 {[%clk 0:00:24]}  Kf7 {[%clk 0:00:06]} 49. Rb4 {[%clk 0:00:24]}  Ra7 {[%clk 0:00:07]} 50. g4 {[%clk 0:00:25]}  Re7 {[%clk 0:00:07]} 51. Kg3 {[%clk 0:00:25]}  Ra7 {[%clk 0:00:08]} 52. Rb6 {[%clk 0:00:25]}  Re7 {[%clk 0:00:08]} 53. Kf4 {[%clk 0:00:26]}  Ra7 {[%clk 0:00:09]} 54. Kg3 {[%clk 0:00:26]}  Re7 {[%clk 0:00:09]} 55. Rb5 {[%clk 0:00:26]}  Ra7 {[%clk 0:00:10]} 56. g5 {[%clk 0:00:27]}  fxg5 {[%clk 0:00:09]} 57. Rxg5 {[%clk 0:00:26]}  g6 {[%clk 0:00:10]} 58. Rg4 {[%clk 0:00:26]}  Kf6 {[%clk 0:00:10]} 59. Re4 {[%clk 0:00:27]}  Ra5 {[%clk 0:00:10]} 60. Rb4 {[%clk 0:00:27]}  Ra6 {[%clk 0:00:10]} 61. Rb5 {[%clk 0:00:27]}  Rc6 {[%clk 0:00:10]} 62. Kg4 {[%clk 0:00:27]}  Rc4+ {[%clk 0:00:09]} 63. f4 {[%clk 0:00:27]}  Rc6 {[%clk 0:00:10]} 64. Ra5 {[%clk 0:00:27]}  Rb6 {[%clk 0:00:11]} 65. Rc5 {[%clk 0:00:28]}  Ra6 {[%clk 0:00:11]} 66. Rb5 {[%clk 0:00:28]}  Rc6 {[%clk 0:00:11]} 67. Ra5 {[%clk 0:00:27]}  Rb6 {[%clk 0:00:11]} 68. Rd5 {[%clk 0:00:27]}  Rc6 {[%clk 0:00:11]} 69. Ra5 {[%clk 0:00:27]} 1/2-1/2


[Site "https://www.chess.com"]

[Event "Late Titled Tuesday Blitz February 8 2022"]
[White "Golubenko, Valentina"]
[Black "Vusatiuk, Vladimir"]
[WhiteFideId "4501993"]
[BlackFideId "14118610"]
[WhiteElo "2164"]
[BlackElo "2157"]
[Result "0-1"]
[Round "05"]
[TimeControl "180+1"]
[Date "2022.02.09"]
[WhiteClock "0:00:10"]
[BlackClock "0:00:10"]

1. d4 {[%clk 0:03:00]}  c5 {[%clk 0:02:57]} 2. d5 {[%clk 0:03:00]}  b5 {[%clk 0:02:56]} 3. g3 {[%clk 0:02:59]}  d6 {[%clk 0:02:53]} 4. Bg2 {[%clk 0:02:59]}  g6 {[%clk 0:02:52]} 5. a4 {[%clk 0:02:59]}  b4 {[%clk 0:02:50]} 6. c4 {[%clk 0:02:57]}  Bg7 {[%clk 0:02:49]} 7. Nf3 {[%clk 0:02:55]}  Nf6 {[%clk 0:02:46]} 8. O-O {[%clk 0:02:55]}  O-O {[%clk 0:02:45]} 9. Re1 {[%clk 0:02:55]}  Nbd7 {[%clk 0:02:13]} 10. Nbd2 {[%clk 0:02:40]}  Ng4 {[%clk 0:01:51]} 11. h3 {[%clk 0:02:35]}  Nge5 {[%clk 0:01:51]} 12. Nxe5 {[%clk 0:02:35]}  Bxe5 {[%clk 0:01:47]} 13. e4 {[%clk 0:02:23]}  a5 {[%clk 0:00:52]} 14. f4 {[%clk 0:02:07]}  Bd4+ {[%clk 0:00:51]} 15. Kh2 {[%clk 0:02:07]}  Ba6 {[%clk 0:00:46]} 16. Rb1 {[%clk 0:01:47]}  e5 {[%clk 0:00:31]} 17. f5 {[%clk 0:01:04]}  Kg7 {[%clk 0:00:25]} 18. Rf1 {[%clk 0:00:43]}  f6 {[%clk 0:00:21]} 19. fxg6 {[%clk 0:00:35]}  hxg6 {[%clk 0:00:22]} 20. b3 {[%clk 0:00:32]}  Rh8 {[%clk 0:00:21]} 21. Nf3 {[%clk 0:00:29]}  Bc3 {[%clk 0:00:16]} 22. Bd2 {[%clk 0:00:29]}  Bxd2 {[%clk 0:00:16]} 23. Qxd2 {[%clk 0:00:30]}  Bc8 {[%clk 0:00:17]} 24. Rf2 {[%clk 0:00:28]}  Nf8 {[%clk 0:00:15]} 25. Rbf1 {[%clk 0:00:22]}  g5 {[%clk 0:00:14]} 26. Ng1 {[%clk 0:00:20]}  Rh6 {[%clk 0:00:15]} 27. Rf3 {[%clk 0:00:15]}  Ra7 {[%clk 0:00:15]} 28. R3f2 {[%clk 0:00:15]}  Bxh3 {[%clk 0:00:15]} 29. Bxh3 {[%clk 0:00:14]}  g4 {[%clk 0:00:15]} 30. Kg2 {[%clk 0:00:14]}  gxh3+ {[%clk 0:00:15]} 31. Nxh3 {[%clk 0:00:15]}  Qd7 {[%clk 0:00:14]} 32. Ng1 {[%clk 0:00:14]}  Qg4 {[%clk 0:00:14]} 33. Nf3 {[%clk 0:00:14]}  Rf7 {[%clk 0:00:14]} 34. Ng1 {[%clk 0:00:14]}  Ng6 {[%clk 0:00:13]} 35. Rxf6 {[%clk 0:00:13]}  Nh4+ {[%clk 0:00:12]} 36. Kh1 {[%clk 0:00:11]}  Nf3+ {[%clk 0:00:11]} 37. Kg2 {[%clk 0:00:10]}  Rh2# {[%clk 0:00:10]} 0-1


[Site "https://www.chess.com"]

[Event "Late Titled Tuesday Blitz February 8 2022"]
[White "Golubovskis, Maksims"]
[Black "Hoffmann, Asa"]
[WhiteFideId "11608528"]
[BlackFideId "2001470"]
[WhiteElo "2066"]
[BlackElo "2117"]
[Result "0-1"]
[Round "05"]
[TimeControl "180+1"]
[Date "2022.02.09"]
[WhiteClock "0:00:29"]
[BlackClock "0:01:52"]

1. e4 {[%clk 0:03:00]}  d6 {[%clk 0:02:59]} 2. d4 {[%clk 0:02:59]}  Nf6 {[%clk 0:02:57]} 3. Nc3 {[%clk 0:02:57]}  c6 {[%clk 0:02:57]} 4. f4 {[%clk 0:02:34]}  Qa5 {[%clk 0:02:56]} 5. e5 {[%clk 0:02:27]}  Ne4 {[%clk 0:02:54]} 6. Qf3 {[%clk 0:02:26]}  d5 {[%clk 0:02:53]} 7. Bd3 {[%clk 0:02:16]}  f5 {[%clk 0:02:42]} 8. exf6 {[%clk 0:02:10]}  Nxf6 {[%clk 0:02:40]} 9. Bd2 {[%clk 0:01:23]}  Qb6 {[%clk 0:02:37]} 10. O-O-O {[%clk 0:01:13]}  Bg4 {[%clk 0:02:36]} 11. Qe3 {[%clk 0:01:04]}  Bxd1 {[%clk 0:02:35]} 12. Nxd1 {[%clk 0:01:04]}  Nbd7 {[%clk 0:02:34]} 13. Nf3 {[%clk 0:01:03]}  O-O-O {[%clk 0:02:23]} 14. Ng5 {[%clk 0:01:02]}  Re8 {[%clk 0:02:16]} 15. Nf7 {[%clk 0:00:55]}  Rg8 {[%clk 0:02:16]} 16. Qe6 {[%clk 0:00:55]}  Qc7 {[%clk 0:02:00]} 17. Nd6+ {[%clk 0:00:28]}  Qxd6 {[%clk 0:01:53]} 18. Qxg8 {[%clk 0:00:29]}  Nxg8 {[%clk 0:01:52]} 0-1


[Site "https://www.chess.com"]

[Event "Late Titled Tuesday Blitz February 8 2022"]
[White "Gurevich, Dmitry"]
[Black "Beulen, Marcel"]
[WhiteFideId "2000407"]
[BlackFideId "1001450"]
[WhiteElo "2506"]
[BlackElo "2368"]
[Result "1-0"]
[Round "05"]
[TimeControl "180+1"]
[Date "2022.02.09"]
[WhiteClock "0:00:24"]
[BlackClock "0:00:07"]

1. d4 {[%clk 0:03:00]}  d5 {[%clk 0:02:59]} 2. c4 {[%clk 0:03:00]}  c6 {[%clk 0:02:59]} 3. Nf3 {[%clk 0:02:59]}  Nf6 {[%clk 0:02:59]} 4. Nc3 {[%clk 0:02:58]}  dxc4 {[%clk 0:02:59]} 5. a4 {[%clk 0:02:58]}  Bf5 {[%clk 0:02:59]} 6. e3 {[%clk 0:02:55]}  e6 {[%clk 0:02:58]} 7. Bxc4 {[%clk 0:02:54]}  Bb4 {[%clk 0:02:59]} 8. O-O {[%clk 0:02:53]}  Nbd7 {[%clk 0:02:59]} 9. Qe2 {[%clk 0:02:53]}  Bg6 {[%clk 0:02:58]} 10. Bd2 {[%clk 0:02:51]}  O-O {[%clk 0:02:50]} 11. Rfc1 {[%clk 0:02:49]}  a5 {[%clk 0:02:46]} 12. h3 {[%clk 0:02:48]}  h6 {[%clk 0:02:44]} 13. Bd3 {[%clk 0:02:46]}  Bxd3 {[%clk 0:02:43]} 14. Qxd3 {[%clk 0:02:46]}  Qe7 {[%clk 0:02:31]} 15. e4 {[%clk 0:02:41]}  e5 {[%clk 0:02:18]} 16. Nxe5 {[%clk 0:02:35]}  Nxe5 {[%clk 0:02:16]} 17. dxe5 {[%clk 0:02:35]}  Qxe5 {[%clk 0:02:14]} 18. f4 {[%clk 0:02:28]}  Qc5+ {[%clk 0:01:35]} 19. Be3 {[%clk 0:02:25]}  Rfd8 {[%clk 0:01:31]} 20. Qxd8+ {[%clk 0:02:18]}  Rxd8 {[%clk 0:01:29]} 21. Bxc5 {[%clk 0:02:17]}  Bxc5+ {[%clk 0:01:29]} 22. Kh2 {[%clk 0:02:16]}  Be3 {[%clk 0:01:27]} 23. Rd1 {[%clk 0:02:06]}  Bxf4+ {[%clk 0:01:23]} 24. g3 {[%clk 0:02:05]}  Rxd1 {[%clk 0:01:23]} 25. Rxd1 {[%clk 0:02:04]}  Be5 {[%clk 0:01:23]} 26. Kg2 {[%clk 0:01:59]}  Bxc3 {[%clk 0:01:22]} 27. bxc3 {[%clk 0:01:58]}  Nxe4 {[%clk 0:01:22]} 28. Rd8+ {[%clk 0:01:48]}  Kh7 {[%clk 0:01:22]} 29. Ra8 {[%clk 0:01:25]}  Nxc3 {[%clk 0:01:16]} 30. Rxa5 {[%clk 0:01:23]}  b5 {[%clk 0:01:16]} 31. axb5 {[%clk 0:01:17]}  cxb5 {[%clk 0:01:13]} 32. Ra7 {[%clk 0:01:17]}  f6 {[%clk 0:01:12]} 33. Rc7 {[%clk 0:01:16]}  b4 {[%clk 0:01:10]} 34. Rc4 {[%clk 0:01:13]}  Nd5 {[%clk 0:01:07]} 35. Rd4 {[%clk 0:01:08]}  Ne7 {[%clk 0:01:04]} 36. Rxb4 {[%clk 0:01:07]}  Nc6 {[%clk 0:01:04]} 37. Rb6 {[%clk 0:01:06]}  Ne5 {[%clk 0:01:04]} 38. Ra6 {[%clk 0:00:57]}  h5 {[%clk 0:01:04]} 39. Kf2 {[%clk 0:00:57]}  Kg6 {[%clk 0:01:04]} 40. Ke3 {[%clk 0:00:57]}  Kf5 {[%clk 0:01:03]} 41. Ra7 {[%clk 0:00:55]}  g6 {[%clk 0:01:02]} 42. Ra5 {[%clk 0:00:53]}  g5 {[%clk 0:01:00]} 43. Ra8 {[%clk 0:00:52]}  Ng6 {[%clk 0:01:00]} 44. Ra5+ {[%clk 0:00:49]}  Ne5 {[%clk 0:01:00]} 45. Kd4 {[%clk 0:00:48]}  h4 {[%clk 0:00:42]} 46. gxh4 {[%clk 0:00:46]}  gxh4 {[%clk 0:00:43]} 47. Ke3 {[%clk 0:00:45]}  Kg5 {[%clk 0:00:38]} 48. Ke4 {[%clk 0:00:45]}  Kg6 {[%clk 0:00:23]} 49. Kf4 {[%clk 0:00:45]}  Nf7 {[%clk 0:00:18]} 50. Kg4 {[%clk 0:00:43]}  Ng5 {[%clk 0:00:18]} 51. Kxh4 {[%clk 0:00:43]}  Nf7 {[%clk 0:00:18]} 52. Kg4 {[%clk 0:00:42]}  Ng5 {[%clk 0:00:19]} 53. h4 {[%clk 0:00:41]}  Nf7 {[%clk 0:00:19]} 54. h5+ {[%clk 0:00:39]}  Kh6 {[%clk 0:00:18]} 55. Rf5 {[%clk 0:00:36]}  Kg7 {[%clk 0:00:17]} 56. Rf1 {[%clk 0:00:33]}  Ne5+ {[%clk 0:00:16]} 57. Kf5 {[%clk 0:00:32]}  Nf7 {[%clk 0:00:16]} 58. Rg1+ {[%clk 0:00:30]}  Ng5 {[%clk 0:00:17]} 59. Kg4 {[%clk 0:00:30]}  Kh6 {[%clk 0:00:16]} 60. Rf1 {[%clk 0:00:29]}  Kg7 {[%clk 0:00:16]} 61. Ra1 {[%clk 0:00:28]}  Nf7 {[%clk 0:00:15]} 62. Ra7 {[%clk 0:00:27]}  Kf8 {[%clk 0:00:07]} 63. Kf5 {[%clk 0:00:26]}  Nd6+ {[%clk 0:00:06]} 64. Kxf6 {[%clk 0:00:25]}  Ne8+ {[%clk 0:00:06]} 65. Kg6 {[%clk 0:00:25]}  Kg8 {[%clk 0:00:06]} 66. Ra8 {[%clk 0:00:24]}  Kf8 {[%clk 0:00:07]} 67. Rxe8+ {[%clk 0:00:24]} 1-0


[Site "https://www.chess.com"]

[Event "Late Titled Tuesday Blitz February 8 2022"]
[White "Howell, David W L"]
[Black "Kravtsiv, Martyn"]
[WhiteFideId "410608"]
[BlackFideId "14113147"]
[WhiteElo "2559"]
[BlackElo "2694"]
[Result "0-1"]
[Round "05"]
[TimeControl "180+1"]
[Date "2022.02.08"]
[WhiteClock "0:00:03"]
[BlackClock "0:00:01"]

1. e4 {[%clk 0:03:00]}  e5 {[%clk 0:02:59]} 2. Nf3 {[%clk 0:02:54]}  Nc6 {[%clk 0:02:59]} 3. Nc3 {[%clk 0:02:53]}  Nf6 {[%clk 0:02:58]} 4. Bb5 {[%clk 0:02:53]}  Bb4 {[%clk 0:02:56]} 5. O-O {[%clk 0:02:52]}  O-O {[%clk 0:02:55]} 6. d3 {[%clk 0:02:52]}  d6 {[%clk 0:02:55]} 7. Ne2 {[%clk 0:02:49]}  Bg4 {[%clk 0:02:45]} 8. c3 {[%clk 0:02:45]}  Ba5 {[%clk 0:02:42]} 9. Ng3 {[%clk 0:02:41]}  Nh5 {[%clk 0:02:40]} 10. h3 {[%clk 0:02:36]}  Nxg3 {[%clk 0:02:36]} 11. fxg3 {[%clk 0:02:36]}  Bd7 {[%clk 0:02:36]} 12. g4 {[%clk 0:02:31]}  Ne7 {[%clk 0:02:34]} 13. Bc4 {[%clk 0:02:28]}  Be6 {[%clk 0:02:25]} 14. Bb3 {[%clk 0:02:21]}  Ng6 {[%clk 0:02:16]} 15. Kh1 {[%clk 0:02:06]}  Bb6 {[%clk 0:02:12]} 16. a4 {[%clk 0:01:58]}  a5 {[%clk 0:02:03]} 17. Bxe6 {[%clk 0:01:55]}  fxe6 {[%clk 0:02:04]} 18. Bd2 {[%clk 0:01:52]}  Qd7 {[%clk 0:01:52]} 19. g3 {[%clk 0:01:45]}  Rf7 {[%clk 0:01:45]} 20. Kg2 {[%clk 0:01:42]}  Raf8 {[%clk 0:01:44]} 21. Qe2 {[%clk 0:01:39]}  c6 {[%clk 0:01:30]} 22. h4 {[%clk 0:01:34]}  Bd8 {[%clk 0:01:15]} 23. Be3 {[%clk 0:01:28]}  Ne7 {[%clk 0:01:12]} 24. Rf2 {[%clk 0:01:23]}  Nc8 {[%clk 0:01:10]} 25. Raf1 {[%clk 0:01:16]}  c5 {[%clk 0:01:04]} 26. b3 {[%clk 0:01:10]}  b5 {[%clk 0:01:04]} 27. axb5 {[%clk 0:01:06]}  Qxb5 {[%clk 0:01:05]} 28. Qc2 {[%clk 0:01:06]}  Nb6 {[%clk 0:00:59]} 29. Ra1 {[%clk 0:01:02]}  Nd7 {[%clk 0:00:48]} 30. g5 {[%clk 0:01:00]}  d5 {[%clk 0:00:46]} 31. c4 {[%clk 0:00:58]}  Qc6 {[%clk 0:00:44]} 32. Bd2 {[%clk 0:00:53]}  dxe4 {[%clk 0:00:30]} 33. dxe4 {[%clk 0:00:52]}  Qa8 {[%clk 0:00:29]} 34. Bc3 {[%clk 0:00:44]}  Bc7 {[%clk 0:00:26]} 35. Rff1 {[%clk 0:00:41]}  Nb8 {[%clk 0:00:11]} 36. Nxe5 {[%clk 0:00:34]}  Bxe5 {[%clk 0:00:11]} 37. Bxe5 {[%clk 0:00:35]}  Nc6 {[%clk 0:00:10]} 38. Bc3 {[%clk 0:00:34]}  e5 {[%clk 0:00:10]} 39. Qd3 {[%clk 0:00:21]}  Nd4 {[%clk 0:00:10]} 40. Rxf7 {[%clk 0:00:21]}  Rxf7 {[%clk 0:00:10]} 41. Rxa5 {[%clk 0:00:19]}  Qf8 {[%clk 0:00:10]} 42. Bxd4 {[%clk 0:00:15]}  exd4 {[%clk 0:00:10]} 43. Qe2 {[%clk 0:00:13]}  Rb7 {[%clk 0:00:10]} 44. Rb5 {[%clk 0:00:09]}  Ra7 {[%clk 0:00:06]} 45. b4 {[%clk 0:00:07]}  cxb4 {[%clk 0:00:04]} 46. c5 {[%clk 0:00:08]}  Ra3 {[%clk 0:00:03]} 47. Rxb4 {[%clk 0:00:06]}  d3 {[%clk 0:00:02]} 48. Qb2 {[%clk 0:00:04]}  d2 {[%clk 0:00:01]} 49. Qxd2 {[%clk 0:00:03]}  Qf3+ {[%clk 0:00:01]} 0-1


[Site "https://www.chess.com"]